Workbook

Sheet 1 fascia con attrezzi GOLD
A1: Comitato Regionale Lombardo - Via Ovada, 40 20142 MILANO
B2: Organizzata da: | C2: S.G. S. Giorgio 79 – Desio
B3: Impianto e Indirizzo: | C3: PalaDesio – Largo Atleti Azzurri d’Italia - Desio - MB
B4: Svoltasi in data: | C4: Domenica 21 Febbraio 2016
B5: Disciplina: | C5: Ginnastica per Tutti
A6: Prova di qualificazione Regionale Trofeo Sincrogym - Zona 2
A7: 1° Fascia categoria GOLD - con attrezzi
A9: CL | B9: SOCIETA' | C9: Prov. | D9: TOTALE CON ATTR. | E9: PN | F9: COLLETTIVO CON ATTREZZI | J9: COPPIE CON ATTREZZI
F10: D | G10: E | H10: PN | I10: TOTALE | J10: ESERCIZIO 1^ COPPIA | K10: ESERCIZIO 2^ COPPIA | L10: PN | M10: TOTALE
A11: 1 | B11: 002122 - G.A.L. GYM TEAM LIXONUM | C11: MB | D11: =I11+M11-E11 -> 74.3 | E11: 0 | F11: 22 | G11: 15.7 | I11: =SUM(F11:G11)-H11 -> 37.7 | J11: 18.2 | K11: 18.4 | M11: =J11+K11-L11 -> 36.6
A12: =A11+1 -> 2 | B12: 002026 - POLISPORTIVA BREMBATE | C12: BG | D12: =I12+M12-E12 -> 72.6 | E12: 0 | F12: 22 | G12: 15.3 | I12: =SUM(F12:G12)-H12 -> 37.3 | J12: 18.1 | K12: 17.2 | M12: =J12+K12-L12 -> 35.3
A14: CL | B14: SOCIETA' | C14: Prov. | D14: COLLETTIVO CON ATTREZZI
D15: D | E15: E | F15: PN | G15: TOTALE
A16: 1 | B16: 002122 - G.A.L. GYM TEAM LIXONUM | C16: MB | D16: 22 | E16: 15.7 | G16: =SUM(D16:E16)-F16 -> 37.7
A17: =A16+1 -> 2 | B17: 002026 - POLISPORTIVA BREMBATE | C17: BG | D17: 22 | E17: 15.3 | G17: 37.3
A20: CL | B20: SOCIETA' | C20: Prov. | D20: COPPIE CON ATTREZZI
D21: ESERCIZIO 1^ COPPIA | E21: ESERCIZIO 2^ COPPIA | F21: PN | G21: TOTALE
A22: 1 | B22: 002122 - G.A.L. GYM TEAM LIXONUM | C22: MB | D22: 18.2 | E22: 18.4 | G22: =D22+E22-F22 -> 36.6
A23: =A22+1 -> 2 | B23: 002026 - POLISPORTIVA BREMBATE | C23: BG | D23: 18.1 | E23: 17.2 | G23: =D23+E23-F23 -> 35.3

Sheet 1 fascia senza attrezzi GOLD
A1: Comitato Regionale Lombardo - Via Ovada, 40 20142 MILANO
B2: Organizzata da: | C2: S.G. S. Giorgio 79 – Desio
B3: Impianto e Indirizzo: | C3: PalaDesio – Largo Atleti Azzurri d’Italia - Desio - MB
B4: Svoltasi in data: | C4: Domenica 21 Febbraio 2016
B5: Disciplina: | C5: Ginnastica per Tutti
A6: Prova di qualificazione Regionale Trofeo Sincrogym - Zona 2
A7: 1° Fascia categoria GOLD - senza attrezzi
A9: CL | B9: SOCIETA' | C9: Prov. | D9: TOTALE CON ATTR. | E9: PN | F9: COLLETTIVO SENZA ATTREZZI | J9: COPPIE SENZA ATTREZZI
F10: D | G10: E | H10: PN | I10: TOTALE | J10: ESERCIZIO 1^ COPPIA | K10: ESERCIZIO 2^ COPPIA | L10: PN | M10: TOTALE
A11: 1 | B11: 002026 - POLISPORTIVA BREMBATE | C11: BG | D11: =I11+M11-E11 -> 75.3 | E11: 0 | F11: 22 | G11: 15.3 | I11: =SUM(F11:G11)-H11 -> 37.3 | J11: 18.8 | K11: 19.2 | M11: =J11+K11-L11 -> 38
A13: CL | B13: SOCIETA' | C13: Prov. | D13: COLLETTIVO SENZA ATTREZZI
D14: D | E14: E | F14: PN | G14: TOTALE
A15: 1 | B15: 002026 - POLISPORTIVA BREMBATE | C15: BG | D15: 22 | E15: 15.3 | G15: =SUM(D15:E15)-F15 -> 37.3
A18: CL | B18: SOCIETA' | C18: Prov. | D18: COPPIE SENZA ATTREZZI
D19: ESERCIZIO 1^ COPPIA | E19: ESERCIZIO 2^ COPPIA | F19: PN | G19: TOTALE
A20: 1 | B20: 002026 - POLISPORTIVA BREMBATE | C20: BG | D20: 18.8 | E20: 19.2 | G20: =D20+E20-F20 -> 38

Sheet 2 fascia con attrezzi GOLD
A1: Comitato Regionale Lombardo - Via Ovada, 40 20142 MILANO
B2: Organizzata da: | C2: S.G. S. Giorgio 79 – Desio
B3: Impianto e Indirizzo: | C3: PalaDesio – Largo Atleti Azzurri d’Italia - Desio - MB
B4: Svoltasi in data: | C4: Domenica 21 Febbraio 2016
B5: Disciplina: | C5: Ginnastica per Tutti
A6: Prova di qualificazione Regionale Trofeo Sincrogym - Zona 2
A7: 2° Fascia categoria GOLD - con attrezzi
A9: CL | B9: SOCIETA' | C9: Prov. | D9: TOTALE CON ATTR. | E9: PN | F9: COLLETTIVO CON ATTREZZI | J9: COPPIE CON ATTREZZI
F10: D | G10: E | H10: PN | I10: TOTALE | J10: ESERCIZIO 1^ COPPIA | K10: ESERCIZIO 2^ COPPIA | L10: PN | M10: TOTALE
A11: 1 | B11: 002122 - G.A.L. GYM TEAM LIXONUM | C11: MB | D11: =I11+M11-E11 -> 74.4 | E11: 0 | F11: 22 | G11: 15.4 | I11: =SUM(F11:G11)-H11 -> 37.4 | J11: 18.8 | K11: 18.2 | M11: =J11+K11-L11 -> 37
A12: =A11+1 -> 2 | B12: 000076 - VIRTUS GIUSSANO | C12: MB | D12: =I12+M12-E12 -> 74 | E12: 0 | F12: 21 | G12: 15.5 | I12: =SUM(F12:G12)-H12 -> 36.5 | J12: 18.6 | K12: 18.9 | M12: =J12+K12-L12 -> 37.5
A13: =A12+1 -> 3 | B13: 000610 - GINNASTICA SAN GIORGIO 79 | C13: MB | D13: =I13+M13-E13 -> 73.9 | E13: 0 | F13: 22 | G13: 15.7 | I13: =SUM(F13:G13)-H13 -> 37.7 | J13: 17.8 | K13: 18.4 | M13: =J13+K13-L13 -> 36.2
A14: =A13+1 -> 4 | B14: 002026 - POLISPORTIVA BREMBATE | C14: BG | D14: =I14+M14-E14 -> 71.3 | E14: 0 | F14: 21 | G14: 15.7 | I14: =SUM(F14:G14)-H14 -> 36.7 | J14: 16.5 | K14: 18.1 | M14: =J14+K14-L14 -> 34.6
A16: CL | B16: SOCIETA' | C16: Prov. | D16: COLLETTIVO CON ATTREZZI
D17: D | E17: E | F17: PN | G17: TOTALE
A18: 1 | B18: 000610 - GINNASTICA SAN GIORGIO 79 | C18: MB | D18: 22 | E18: 15.7 | G18: =SUM(D18:E18)-F18 -> 37.7
A19: =A18+1 -> 2 | B19: 002122 - G.A.L. GYM TEAM LIXONUM | C19: MB | D19: 22 | E19: 15.4 | G19: =SUM(D19:E19)-F19 -> 37.4
A20: =A19+1 -> 3 | B20: 002026 - POLISPORTIVA BREMBATE | C20: BG | D20: 21 | E20: 15.7 | G20: =SUM(D20:E20)-F20 -> 36.7
A21: =A20+1 -> 4 | B21: 000076 - VIRTUS GIUSSANO | C21: MB | D21: 21 | E21: 15.5 | G21: =SUM(D21:E21)-F21 -> 36.5
A24: CL | B24: SOCIETA' | C24: Prov. | D24: COPPIE CON ATTREZZI
D25: ESERCIZIO 1^ COPPIA | E25: ESERCIZIO 2^ COPPIA | F25: PN | G25: TOTALE
A26: 1 | B26: 000076 - VIRTUS GIUSSANO | C26: MB | D26: 18.6 | E26: 18.9 | G26: =D26+E26-F26 -> 37.5
A27: =A26+1 -> 2 | B27: 002122 - G.A.L. GYM TEAM LIXONUM | C27: MB | D27: 18.8 | E27: 18.2 | G27: =D27+E27-F27 -> 37
A28: =A27+1 -> 3 | B28: 000610 - GINNASTICA SAN GIORGIO 79 | C28: MB | D28: 17.8 | E28: 18.4 | G28: =D28+E28-F28 -> 36.2
A29: =A28+1 -> 4 | B29: 002026 - POLISPORTIVA BREMBATE | C29: BG | D29: 16.5 | E29: 18.1 | G29: =D29+E29-F29 -> 34.6

Sheet 2 fascia senza attrezzi GOLD
A1: Comitato Regionale Lombardo - Via Ovada, 40 20142 MILANO
B2: Organizzata da: | C2: S.G. S. Giorgio 79 – Desio
B3: Impianto e Indirizzo: | C3: PalaDesio – Largo Atleti Azzurri d’Italia - Desio - MB
B4: Svoltasi in data: | C4: Domenica 21 Febbraio 2016
B5: Disciplina: | C5: Ginnastica per Tutti
A6: Prova di qualificazione Regionale Trofeo Sincrogym - Zona 2
A7: 2° Fascia categoria GOLD - senza attrezzi
A9: CL | B9: SOCIETA' | C9: Prov. | D9: TOTALE CON ATTR. | E9: PN | F9: COLLETTIVO SENZA ATTREZZI | J9: COPPIE SENZA ATTREZZI
F10: D | G10: E | H10: PN | I10: TOTALE | J10: ESERCIZIO 1^ COPPIA | K10: ESERCIZIO 2^ COPPIA | L10: PN | M10: TOTALE
A11: 1 | B11: 000668 - G.A.L. LISSONE | C11: MB | D11: =I11+M11-E11 -> 78 | E11: 0 | F11: 23 | G11: 16 | I11: =SUM(F11:G11)-H11 -> 39 | J11: 19.4 | K11: 19.6 | M11: =J11+K11-L11 -> 39
A12: =A11+1 -> 2 | B12: 000076 - VIRTUS GIUSSANO | C12: MB | D12: =I12+M12-E12 -> 76 | E12: 0 | F12: 22 | G12: 15.7 | I12: =SUM(F12:G12)-H12 -> 37.7 | J12: 18.7 | K12: 19.6 | M12: =J12+K12-L12 -> 38.3
A13: =A12+1 -> 3 | B13: 000488 - MUGGIO' 75 | C13: MB | D13: =I13+M13-E13 -> 73.8 | E13: 0 | F13: 23 | G13: 14.4 | I13: =SUM(F13:G13)-H13 -> 37.4 | J13: 18.9 | K13: 17.5 | M13: =J13+K13-L13 -> 36.4
A15: CL | B15: SOCIETA' | C15: Prov. | D15: COLLETTIVO SENZA ATTREZZI
D16: D | E16: E | F16: PN | G16: TOTALE
A17: 1 | B17: 000668 - G.A.L. LISSONE | C17: MB | D17: 23 | E17: 16 | G17: =SUM(D17:E17)-F17 -> 39
A18: =A17+1 -> 2 | B18: 000076 - VIRTUS GIUSSANO | C18: MB | D18: 22 | E18: 15.7 | G18: =SUM(D18:E18)-F18 -> 37.7
A19: =A18+1 -> 3 | B19: 000488 - MUGGIO' 75 | C19: MB | D19: 23 | E19: 14.4 | G19: =SUM(D19:E19)-F19 -> 37.4
A22: CL | B22: SOCIETA' | C22: Prov. | D22: COPPIE SENZA ATTREZZI
D23: ESERCIZIO 1^ COPPIA | E23: ESERCIZIO 2^ COPPIA | F23: PN | G23: TOTALE
A24: 1 | B24: 000668 - G.A.L. LISSONE | C24: MB | D24: 19.4 | E24: 19.6 | G24: =D24+E24-F24 -> 39
A25: =A24+1 -> 2 | B25: 000076 - VIRTUS GIUSSANO | C25: MB | D25: 18.7 | E25: 19.6 | G25: =D25+E25-F25 -> 38.3
A26: =A25+1 -> 3 | B26: 000488 - MUGGIO' 75 | C26: MB | D26: 18.9 | E26: 17.5 | G26: =D26+E26-F26 -> 36.4

Sheet 3-4 fascia con attrezzi GOLD
A1: Comitato Regionale Lombardo - Via Ovada, 40 20142 MILANO
B2: Organizzata da: | C2: S.G. S. Giorgio 79 – Desio
B3: Impianto e Indirizzo: | C3: PalaDesio – Largo Atleti Azzurri d’Italia - Desio - MB
B4: Svoltasi in data: | C4: Domenica 21 Febbraio 2016
B5: Disciplina: | C5: Ginnastica per Tutti
A6: Prova di qualificazione Regionale Trofeo Sincrogym - Zona 2
A7: 3°- 4° Fascia categoria GOLD - con attrezzi
A9: CL | B9: SOCIETA' | C9: Prov. | D9: TOTALE CON ATTR. | E9: PN | F9: COLLETTIVO CON ATTREZZI | J9: COPPIE CON ATTREZZI
F10: D | G10: E | H10: PN | I10: TOTALE | J10: ESERCIZIO 1^ COPPIA | K10: ESERCIZIO 2^ COPPIA | L10: PN | M10: TOTALE
A11: 1 | B11: 002026 - POLISPORTIVA BREMBATE | C11: BG | D11: =I11+M11-E11 -> 75.3 | E11: 0 | F11: 22 | G11: 15.3 | I11: =SUM(F11:G11)-H11 -> 37.3 | J11: 19 | K11: 19 | M11: =J11+K11-L11 -> 38
A12: =A11+1 -> 2 | B12: 000610 - GINNASTICA SAN GIORGIO 79 | C12: MB | D12: =I12+M12-E12 -> 74.2 | E12: 0 | F12: 22 | G12: 14.6 | I12: =SUM(F12:G12)-H12 -> 36.6 | J12: 18.9 | K12: 18.7 | M12: =J12+K12-L12 -> 37.6
A13: =A12+1 -> 3 | B13: 000668 - G.A.L. LISSONE | C13: MB | D13: =I13+M13-E13 -> 73.1 | E13: 0 | F13: 22 | G13: 13.9 | I13: =SUM(F13:G13)-H13 -> 35.9 | J13: 18.7 | K13: 18.5 | M13: =J13+K13-L13 -> 37.2
A14: =A13+1 -> 4 | B14: 000076 - VIRTUS GIUSSANO | C14: MB | D14: =I14+M14-E14 -> 72.6 | E14: 0 | F14: 22 | G14: 14.1 | I14: =SUM(F14:G14)-H14 -> 36.1 | J14: 17.6 | K14: 18.9 | M14: =J14+K14-L14 -> 36.5
A16: CL | B16: SOCIETA' | C16: Prov. | D16: COLLETTIVO CON ATTREZZI
D17: D | E17: E | F17: PN | G17: TOTALE
A18: 1 | B18: 002026 - POLISPORTIVA BREMBATE | C18: BG | D18: 22 | E18: 15.3 | G18: =SUM(D18:E18)-F18 -> 37.3
A19: =A18+1 -> 2 | B19: 000610 - GINNASTICA SAN GIORGIO 79 | C19: MB | D19: 22 | E19: 14.6 | G19: =SUM(D19:E19)-F19 -> 36.6
A20: =A19+1 -> 3 | B20: 000076 - VIRTUS GIUSSANO | C20: MB | D20: 22 | E20: 14.1 | G20: =SUM(D20:E20)-F20 -> 36.1
A21: =A20+1 -> 4 | B21: 000668 - G.A.L. LISSONE | C21: MB | D21: 22 | E21: 13.9 | G21: =SUM(D21:E21)-F21 -> 35.9
A24: CL | B24: SOCIETA' | C24: Prov. | D24: COPPIE CON ATTREZZI
D25: ESERCIZIO 1^ COPPIA | E25: ESERCIZIO 2^ COPPIA | F25: PN | G25: TOTALE
A26: 1 | B26: 002026 - POLISPORTIVA BREMBATE | C26: BG | D26: 19 | E26: 19 | G26: =D26+E26-F26 -> 38
A27: =A26+1 -> 2 | B27: 000610 - GINNASTICA SAN GIORGIO 79 | C27: MB | D27: 18.9 | E27: 18.7 | G27: =D27+E27-F27 -> 37.6
A28: =A27+1 -> 3 | B28: 000668 - G.A.L. LISSONE | C28: MB | D28: 18.7 | E28: 18.5 | G28: =D28+E28-F28 -> 37.2
A29: =A28+1 -> 4 | B29: 000076 - VIRTUS GIUSSANO | C29: MB | D29: 17.6 | E29: 18.9 | G29: =D29+E29-F29 -> 36.5

Sheet 3-4 fascia senza attrezzi GOL
A1: Comitato Regionale Lombardo - Via Ovada, 40 20142 MILANO
B2: Organizzata da: | C2: S.G. S. Giorgio 79 – Desio
B3: Impianto e Indirizzo: | C3: PalaDesio – Largo Atleti Azzurri d’Italia - Desio - MB
B4: Svoltasi in data: | C4: Domenica 21 Febbraio 2016
B5: Disciplina: | C5: Ginnastica per Tutti
A6: Prova di qualificazione Regionale Trofeo Sincrogym - Zona 2
A7: 3°- 4° Fascia categoria GOLD - senza attrezzi
A9: CL | B9: SOCIETA' | C9: Prov. | D9: TOTALE CON ATTR. | E9: PN | F9: COLLETTIVO SENZA ATTREZZI | J9: COPPIE SENZA ATTREZZI
F10: D | G10: E | H10: PN | I10: TOTALE | J10: ESERCIZIO 1^ COPPIA | K10: ESERCIZIO 2^ COPPIA | L10: PN | M10: TOTALE
A11: 1 | B11: 002122 - G.A.L. GYM TEAM LIXONUM | C11: MB | D11: =I11+M11-E11 -> 78.1 | E11: 0 | F11: 23 | G11: 16 | I11: =SUM(F11:G11)-H11 -> 39 | J11: 19.7 | K11: 19.4 | M11: =J11+K11-L11 -> 39.1
A12: =A11+1 -> 2 | B12: 002396 - GINNASTICA LIXIO | C12: MB | D12: =I12+M12-E12 -> 77.6 | E12: 0 | F12: 23 | G12: 15.6 | I12: =SUM(F12:G12)-H12 -> 38.6 | J12: 19.5 | K12: 19.5 | M12: =J12+K12-L12 -> 39
A13: =A12+1 -> 3 | B13: 000488 - MUGGIO' 75 | C13: MB | D13: =I13+M13-E13 -> 77.2 | E13: 0 | F13: 23 | G13: 15.7 | I13: =SUM(F13:G13)-H13 -> 38.7 | J13: 19.4 | K13: 19.1 | M13: =J13+K13-L13 -> 38.5
A15: CL | B15: SOCIETA' | C15: Prov. | D15: COLLETTIVO SENZA ATTREZZI
D16: D | E16: E | F16: PN | G16: TOTALE
A17: 1 | B17: 002122 - G.A.L. GYM TEAM LIXONUM | C17: MB | D17: 23 | E17: 16 | G17: =SUM(D17:E17)-F17 -> 39
A18: =A17+1 -> 2 | B18: 000488 - MUGGIO' 75 | C18: MB | D18: 23 | E18: 15.7 | G18: =SUM(D18:E18)-F18 -> 38.7
A19: =A18+1 -> 3 | B19: 002396 - GINNASTICA LIXIO | C19: MB | D19: 23 | E19: 15.6 | G19: =SUM(D19:E19)-F19 -> 38.6
A22: CL | B22: SOCIETA' | C22: Prov. | D22: COPPIE SENZA ATTREZZI
D23: ESERCIZIO 1^ COPPIA | E23: ESERCIZIO 2^ COPPIA | F23: PN | G23: TOTALE
A24: 1 | B24: 002122 - G.A.L. GYM TEAM LIXONUM | C24: MB | D24: 19.7 | E24: 19.4 | G24: =D24+E24-F24 -> 39.1
A25: =A24+1 -> 2 | B25: 002396 - GINNASTICA LIXIO | C25: MB | D25: 19.5 | E25: 19.5 | G25: =D25+E25-F25 -> 39
A26: =A25+1 -> 3 | B26: 000488 - MUGGIO' 75 | C26: MB | D26: 19.4 | E26: 19.1 | G26: =D26+E26-F26 -> 38.5
